bitfinex-derivatives/quotes_BTCF0:USTF0_20251103
["timestamp","ask_amount","ask_price","bid_price","bid_amount"]
[1762177197669,0.61212475,108040.0,108030.0,0.004]
[1762177198273,0.61212475,108040.0,108030.0,0.01044]
[1762177198475,0.72079032,108040.0,108030.0,0.01044]
[1762177199568,0.72079032,108040.0,108030.0,0.004]
[1762177201878,0.05823,108030.0,108020.0,0.32381485]
[1762177202080,0.96633204,108030.0,108020.0,0.33669485]
[1762177202580,0.64549204,108030.0,108020.0,0.32381485]
[1762177203072,0.64549204,108030.0,108020.0,0.41640495]
[1762177203273,0.28469204,108030.0,108020.0,0.42928495]
[1762177203581,0.28469204,108030.0,108020.0,0.43128495]
[1762177203974,0.28469204,108030.0,108020.0,0.79208495]
[1762177204176,0.17146102,108030.0,108020.0,0.79208495]
[1762177204479,0.28469204,108030.0,108020.0,0.79508495]
[1762177204878,0.05823,108030.0,108020.0,0.79508495]
[1762177205270,0.28469204,108030.0,108020.0,0.79508495]
[1762177205486,0.28469204,108030.0,108020.0,0.70249485]
[1762177205785,0.28469204,108030.0,108020.0,0.34169485]
[1762177205984,0.28469204,108030.0,108020.0,0.79508495]
[1762177208183,0.28469204,108030.0,108020.0,0.84481239]
[1762177210983,0.28469204,108030.0,108020.0,0.84481219]
[1762177221586,0.30664229,108030.0,108020.0,0.84481219]
[1762177222794,0.30664229,108030.0,108020.0,0.84481209]
[1762177223492,0.30664229,108030.0,108020.0,0.75222229]
[1762177223991,0.30664229,108030.0,108020.0,0.84481209]
[1762177224296,0.18082786,108030.0,108020.0,0.84481209]
[1762177225192,0.18082786,108030.0,108020.0,0.75222229]
[1762177225395,0.18082786,108030.0,108020.0,0.39142229]
[1762177225396,0.54162786,108030.0,108020.0,0.39142229]
[1762177225691,0.54162786,108030.0,108020.0,0.38506229]
[1762177225883,0.54162786,108030.0,108020.0,0.37862229]
[1762177226082,0.54162786,108030.0,108020.0,0.48409209]
[1762177227690,0.54162786,108030.0,108020.0,0.16325209]
[1762177227886,0.18082786,108030.0,108020.0,0.52405209]
[1762177228492,0.18082786,108030.0,108020.0,0.16325209]
[1762177228901,0.18082786,108030.0,108020.0,0.07066229]
[1762177229598,0.18082786,108030.0,108020.0,0.16325209]
[1762177230683,0.18082786,108030.0,108020.0,0.07066229]
[1762177231395,0.54162786,108030.0,108020.0,0.07066229]
[1762177231797,0.54162786,108030.0,108020.0,0.05778229]
[1762177232695,0.54162786,108030.0,108020.0,0.06422229]
[1762177233996,0.54162786,108030.0,108020.0,0.05778229]
[1762177234597,0.05817,108020.0,108010.0,0.0499718]
[1762177234897,0.54157535,108020.0,108010.0,0.0499718]
[1762177235091,0.51961761,108020.0,108010.0,0.0499718]
[1762177235296,0.05817,108010.0,108000.0,0.33368]
[1762177235496,0.54195759,108010.0,108000.0,0.33368]
[1762177235686,0.54195759,108010.0,108000.0,0.4262871]
[1762177235886,0.53595759,108010.0,108000.0,0.4262871]
[1762177236295,0.53306582,108010.0,108000.0,0.4262871]
[1762177236600,0.53306582,108010.0,108000.0,0.00644]
[1762177236900,0.53306582,108010.0,108000.0,0.02188]
[1762177237103,0.51072584,108010.0,108000.0,0.02188]
[1762177238494,0.52772584,108010.0,108000.0,0.02288]
[1762177239300,0.51372584,108010.0,108000.0,0.02188]
[1762177239499,0.52272584,108010.0,108000.0,0.02188]
[1762177239695,0.50974935,108010.0,108000.0,0.1234866]
[1762177239901,0.55402935,108010.0,108000.0,0.03088]
[1762177240205,0.52272584,108010.0,108000.0,0.03088]
[1762177240410,0.53472584,108010.0,108000.0,0.03188]
[1762177240596,0.53472584,108010.0,108000.0,0.01644]
[1762177240798,0.53472584,108010.0,108000.0,0.001]
[1762177240996,0.55702501,108010.0,108000.0,0.001]
[1762177241191,0.63537345,108010.0,108000.0,0.001]
[1762177241395,0.63737345,108010.0,108000.0,0.001]
[1762177243599,0.05817,107990.0,107980.0,0.00305598]
[1762177243902,0.51971973,107990.0,107980.0,0.00305598]
[1762177245704,0.52671973,107990.0,107980.0,0.00305598]
[1762177247300,0.52671973,107990.0,107960.0,0.68164]
[1762177247506,0.25946522,107970.0,107960.0,0.33628]
[1762177247707,0.25957345,107970.0,107960.0,0.32084]
[1762177247897,0.05817,107960.0,107950.0,0.4904295]
[1762177248093,0.15881761,107960.0,107950.0,0.4904295]
[1762177248299,0.10064761,107960.0,107950.0,0.4594495]
[1762177248500,0.10064761,107960.0,107950.0,0.4964295]
[1762177248807,0.14492761,107960.0,107950.0,0.4964295]
[1762177249199,0.14292761,107960.0,107950.0,0.4964295]
[1762177249904,0.15681761,107960.0,107950.0,0.4984295]
[1762177250098,0.15681761,107960.0,107950.0,0.5034295]
[1762177250406,0.05817,107960.0,107950.0,0.5034295]
[1762177250594,0.15881761,107960.0,107950.0,0.5034295]
[1762177251006,0.12334761,107960.0,107950.0,0.5034295]
[1762177251305,0.12222761,107960.0,107950.0,0.5034295]
[1762177251704,0.16986221,107970.0,107960.0,0.129621]
[1762177251903,0.16986221,107970.0,107960.0,0.811301]
[1762177252504,0.16986221,107970.0,107960.0,0.71866]
[1762177253099,0.16986221,107970.0,107960.0,0.71966]
[1762177253501,0.16986221,107970.0,107960.0,0.812301]
[1762177256611,0.16986221,107970.0,107960.0,0.71966]
[1762177256910,0.16986221,107970.0,107960.0,0.812301]
[1762177257603,0.16986221,107970.0,107960.0,0.35886]
[1762177258003,0.16986221,107970.0,107960.0,0.4515011]
[1762177260005,0.16986221,107970.0,107960.0,0.8123011]
[1762177260415,0.16986221,107970.0,107960.0,0.4515011]
[1762177261209,0.0692146,107970.0,107960.0,0.4515011]
[1762177261518,0.16986221,107970.0,107960.0,0.4515011]
[1762177263313,0.27050982,107970.0,107960.0,0.03798]
[1762177263520,0.057,107950.0,107940.0,0.45659781]
[1762177263706,0.15773137,107950.0,107940.0,0.68481931]
[1762177264019,0.15773137,107950.0,107940.0,0.32401931]
[1762177264818,0.15773137,107950.0,107940.0,0.33401931]
[1762177265012,0.15773137,107950.0,107940.0,0.42667811]
[1762177265317,0.15773137,107950.0,107940.0,0.33401931]
[1762177265508,0.15773137,107950.0,107940.0,0.42667801]
[1762177266619,0.15773137,107950.0,107940.0,0.41767801]
[1762177267311,0.15773137,107950.0,107940.0,0.32501931]
[1762177267518,0.15773137,107950.0,107920.0,0.80548]
[1762177267519,0.51853137,107950.0,107920.0,0.80548]
[1762177267716,0.15764761,107930.0,107920.0,0.4534763]
[1762177267918,0.057,107920.0,107910.0,0.4136005]
[1762177268219,0.25829522,107920.0,107910.0,0.4136046]
[1762177268410,0.25829522,107920.0,107910.0,0.32092]
[1762177268610,0.25838933,107920.0,107910.0,0.32092]
[1762177269115,0.057,107910.0,107900.0,0.77747165]
[1762177269714,0.16987546,107910.0,107900.0,0.77747165]
[1762177270112,0.16987546,107910.0,107900.0,0.68477825]
[1762177270308,1.74456756,107910.0,107900.0,0.69077825]
[1762177270510,1.74456756,107910.0,107900.0,0.32997825]
[1762177270819,1.74456756,107910.0,107900.0,0.42267155]
[1762177271006,1.74456756,107910.0,107900.0,0.32997825]
[1762177271211,1.74465539,107910.0,107900.0,0.42267155]
[1762177271711,1.81896916,107910.0,107900.0,0.42267155]
[1762177272411,1.81296916,107910.0,107900.0,0.42267155]
[1762177274817,1.81396916,107910.0,107900.0,0.78347155]
[1762177275017,1.56131568,107910.0,107900.0,0.78347155]
[1762177275620,1.54908783,107910.0,107900.0,0.78347155]
[1762177276219,0.04908783,107910.0,107900.0,0.78347155]
[1762177277228,0.05208783,107910.0,107900.0,0.78347155]
[1762177277615,0.00408783,107910.0,107900.0,1.01515155]
[1762177281427,0.00408783,107910.0,107900.0,0.78347155]
[1762177282714,0.00408783,107910.0,107900.0,1.01515155]
[1762177283817,0.00408783,107910.0,107900.0,1.16485155]
[1762177285222,0.02619783,107910.0,107900.0,0.84393155]
[1762177285429,0.18029875,107910.0,107900.0,0.93321155]
[1762177286327,0.06213783,107910.0,107900.0,0.93321155]
[1762177288432,0.03992783,107910.0,107900.0,0.93321155]
[1762177288622,0.06162783,107910.0,107900.0,0.93321155]
[1762177289731,0.06162783,107910.0,107900.0,0.78351155]
[1762177290035,0.17978875,107910.0,107900.0,0.46255155]
[1762177290224,0.17978875,107910.0,107900.0,0.78351155]
[1762177290533,0.28855361,107910.0,107900.0,0.78351155]
[1762177291322,0.17509072,107910.0,107900.0,0.78351155]
[1762177291531,0.11755072,107910.0,107900.0,0.78351155]
[1762177292127,0.16027072,107910.0,107900.0,0.78351155]
[1762177292327,0.17358072,107910.0,107900.0,0.78351155]
[1762177293632,0.28704361,107910.0,107900.0,0.78351155]
[1762177294436,0.17358072,107910.0,107900.0,0.78351155]
[1762177294628,0.11755072,107910.0,107900.0,0.78351155]
[1762177295138,0.13857072,107910.0,107900.0,0.84997351]
[1762177295326,0.13857072,107910.0,107900.0,0.78351155]
[1762177295926,0.17358072,107910.0,107900.0,0.78351155]
[1762177296127,0.28704361,107910.0,107900.0,0.78351155]
[1762177296536,0.17358072,107910.0,107900.0,0.78351155]
[1762177296737,0.28704361,107910.0,107900.0,0.78351155]
[1762177296939,0.28704361,107910.0,107900.0,0.46255115]
[1762177297143,0.28704361,107910.0,107900.0,0.78351115]
[1762177297635,0.28704361,107910.0,107900.0,0.69081825]
[1762177297940,0.28704361,107910.0,107900.0,0.78351135]
[1762177302836,0.28704361,107910.0,107900.0,0.69081825]
[1762177303029,0.28704361,107910.0,107900.0,0.78351185]
[1762177304338,0.06011783,107910.0,107900.0,0.78351185]
[1762177304543,0.17358072,107910.0,107900.0,0.78351185]
[1762177305147,0.28704361,107910.0,107900.0,0.84997381]
[1762177305329,0.17358072,107910.0,107900.0,0.84997381]
[1762177305534,0.00408783,107910.0,107900.0,0.84997381]
[1762177305736,0.11755072,107910.0,107900.0,0.84997381]
[1762177307143,0.13857072,107910.0,107900.0,0.84997381]
[1762177307546,0.11755072,107910.0,107900.0,0.84997381]
[1762177308344,0.13857072,107910.0,107900.0,0.84997381]
[1762177308546,0.11755072,107910.0,107900.0,0.84997381]
[1762177310046,0.17358072,107910.0,107900.0,0.84997381]
[1762177312446,0.11755072,107910.0,107900.0,0.84997381]
[1762177312849,0.13857072,107910.0,107900.0,0.84997381]
[1762177314050,0.16027072,107910.0,107900.0,0.84997381]
[1762177318146,0.17385072,107910.0,107900.0,0.78351185]
[1762177319951,0.00408783,107910.0,107900.0,0.89697474]
[1762177320151,0.11755072,107910.0,107900.0,0.89697474]
[1762177320556,0.11755072,107910.0,107900.0,1.12865474]
[1762177320756,0.11755072,107910.0,107900.0,0.89697474]
[1762177321258,0.16330072,107910.0,107900.0,0.78351185]
[1762177321453,0.16330072,107910.0,107900.0,0.89697474]
[1762177321646,0.16330072,107910.0,107900.0,0.9634367]
[1762177322049,0.16330072,107910.0,107900.0,0.89697474]
[1762177322243,0.17688072,107910.0,107900.0,0.98022643]
[1762177323457,0.14060072,107910.0,107900.0,0.98022643]
[1762177323656,0.11755072,107910.0,107900.0,0.98022643]
[1762177323848,0.14060072,107910.0,107900.0,0.98022643]
[1762177324156,0.11755072,107910.0,107900.0,0.98022643]
[1762177324748,0.00408783,107910.0,107900.0,0.98022643]
[1762177324948,0.11755072,107910.0,107900.0,1.12992643]
[1762177325259,0.14060072,107910.0,107900.0,1.12992643]
[1762177325557,0.16330072,107910.0,107900.0,1.12992643]
[1762177325753,0.17688072,107910.0,107900.0,1.04667474]
[1762177326154,0.17688072,107910.0,107900.0,0.93321185]
[1762177326859,0.17688072,107910.0,107900.0,1.04667474]
[1762177327048,0.16330072,107910.0,107900.0,1.04667474]
[1762177327849,0.16330072,107910.0,107900.0,1.12992643]
[1762177328157,0.17688072,107910.0,107900.0,1.12992643]
[1762177328561,0.17688072,107910.0,107900.0,1.04667474]
[1762177328855,0.17688072,107910.0,107900.0,0.93321185]
[1762177329053,0.17688072,107910.0,107900.0,1.04667474]
[1762177329760,0.17688072,107910.0,107900.0,0.93321185]
[1762177331261,0.17688072,107910.0,107900.0,1.04667474]
[1762177331650,0.17688072,107910.0,107900.0,0.93321185]
[1762177331850,0.17688072,107910.0,107900.0,1.04667474]
[1762177334161,0.17688072,107910.0,107900.0,0.93321185]
[1762177334455,0.17688072,107910.0,107900.0,1.04667474]
[1762177334665,0.17688072,107910.0,107900.0,0.93321185]
[1762177334860,0.17688072,107910.0,107900.0,1.12992643]
[1762177335060,0.17688072,107910.0,107900.0,1.01646354]
[1762177336362,0.29034361,107910.0,107900.0,1.01646354]
[1762177336565,0.29034361,107910.0,107900.0,0.86676354]
[1762177336972,0.29034361,107910.0,107900.0,0.78351185]
[1762177337359,0.29034361,107910.0,107900.0,0.86676354]
[1762177337562,0.17688072,107910.0,107900.0,0.86676354]
[1762177338858,0.17688072,107910.0,107900.0,0.78351185]
[1762177340166,0.29034361,107910.0,107900.0,0.78351185]
[1762177340558,0.29034361,107910.0,107900.0,0.86676354]
[1762177340963,0.29034361,107910.0,107900.0,0.49996384]
[1762177341255,0.29034361,107910.0,107900.0,0.40726994]
[1762177341464,0.29034361,107910.0,107900.0,0.39063821]
[1762177341858,0.29034361,107910.0,107900.0,0.48333181]
[1762177342065,0.29034361,107910.0,107900.0,0.39063821]
[1762177342265,0.29334361,107910.0,107900.0,0.39063821]
[1762177342561,0.29334361,107910.0,107900.0,0.06967821]
[1762177342768,0.67690831,107910.0,107900.0,0.00305825]
[1762177342969,0.67590831,107910.0,107900.0,0.00305825]
[1762177343170,0.67790831,107910.0,107900.0,0.00305825]
[1762177343467,0.65514361,107910.0,107900.0,0.00305825]
[1762177344365,0.52911772,107910.0,107900.0,0.00305825]
[1762177344566,0.05933,107900.0,107890.0,0.48012006]
[1762177344761,0.16022989,107900.0,107890.0,0.48012006]
[1762177345562,0.23249031,107900.0,107890.0,0.48012006]
[1762177345960,0.05667,107890.0,107880.0,0.54624586]
[1762177346267,0.15768309,107890.0,107880.0,0.86704586]
[1762177348169,0.15868309,107890.0,107880.0,0.87204586]
[1762177351571,0.1703456,107890.0,107880.0,0.87204586]
[1762177358076,0.10201309,107890.0,107880.0,0.87510586]
[1762177358563,0.10201309,107890.0,107880.0,0.8084859]
[1762177358766,0.10201309,107890.0,107880.0,0.89173759]
[1762177358969,0.10201309,107890.0,107880.0,0.8084859]
[1762177359181,0.12379309,107890.0,107880.0,0.8084859]
[1762177359374,0.15806309,107890.0,107880.0,0.8054259]
[1762177359569,0.15806309,107890.0,107880.0,0.87188563]
[1762177361683,0.15806309,107890.0,107880.0,0.8054259]
[1762177362377,0.0571632,107890.0,107880.0,0.87188563]
[1762177362680,0.15806309,107890.0,107880.0,0.87188563]
[1762177363681,0.15806309,107890.0,107880.0,0.8054304]
[1762177368876,0.15806309,107890.0,107880.0,0.87189013]
[1762177369190,0.0571632,107890.0,107880.0,0.87189013]
[1762177369394,0.15806309,107890.0,107880.0,0.87189013]
[1762177370083,0.15806309,107890.0,107880.0,0.8054304]
[1762177370283,0.15806309,107890.0,107880.0,0.87189013]
[1762177370685,0.0571632,107890.0,107880.0,0.87189013]
[1762177370987,0.15806309,107890.0,107880.0,0.87189013]
[1762177372887,0.14517309,107890.0,107880.0,0.87189013]
[1762177373092,0.15806309,107890.0,107880.0,0.87189013]
[1762177373791,0.15806309,107890.0,107880.0,0.8054304]
[1762177373980,0.0571632,107890.0,107880.0,0.88868209]
[1762177374178,0.0571632,107890.0,107880.0,0.87207488]
[1762177374179,0.15806309,107890.0,107880.0,0.87207488]
[1762177375587,0.10201309,107890.0,107880.0,0.8054304]
[1762177375891,0.0011132,107890.0,107880.0,0.88868209]
[1762177377792,3.2e-06,107890.0,107880.0,0.88868209]
[1762177378785,8.043e-05,107890.0,107880.0,0.88868209]
[1762177379186,0.0683914,107910.0,107900.0,0.02374]
[1762177379393,0.16929129,107910.0,107900.0,0.86454165]
[1762177380390,0.17429129,107910.0,107900.0,0.77284855]
[1762177380589,0.17429129,107910.0,107900.0,0.41204855]
[1762177380790,0.17729129,107910.0,107900.0,0.34546]
[1762177380991,0.17729129,107910.0,107900.0,0.33359]
[1762177381191,0.17729129,107910.0,107900.0,0.34546]
[1762177381897,0.17729129,107910.0,107900.0,0.001]
[1762177382084,0.76977129,107910.0,107900.0,0.001]
[1762177382290,0.79263098,107910.0,107900.0,0.001]
[1762177382596,0.05674,107890.0,107880.0,0.54383205]
[1762177382795,0.15763989,107890.0,107880.0,0.86455205]
[1762177383899,0.15763989,107890.0,107880.0,0.86655205]
[1762177385494,0.15763989,107890.0,107880.0,0.77384855]
[1762177385696,0.15763989,107890.0,107880.0,0.34646]
[1762177385897,0.25853978,107890.0,107880.0,0.34646]
[1762177386198,0.15763989,107890.0,107880.0,0.34646]
[1762177386401,0.25853978,107890.0,107880.0,0.002]
[1762177386591,0.61933978,107890.0,107880.0,0.002]
[1762177386799,0.05674,107880.0,107870.0,0.39913855]
[1762177386995,0.25853978,107880.0,107870.0,0.39913855]
[1762177387203,0.25853978,107880.0,107870.0,0.34442]
[1762177388099,0.62333978,107880.0,107870.0,0.001]
[1762177388405,0.62333978,107880.0,107870.0,0.01434951]
[1762177388905,0.62333978,107880.0,107870.0,0.0937193]
[1762177390195,0.62333978,107880.0,107870.0,0.1055893]
[1762177390398,0.26253978,107880.0,107870.0,0.1174593]
[1762177390597,0.16163989,107880.0,107870.0,0.1174593]
[1762177391190,0.16163989,107880.0,107870.0,0.4663893]
[1762177391406,0.26253978,107880.0,107870.0,0.37367]
[1762177391594,0.26253978,107880.0,107870.0,0.4663892]
[1762177391899,0.62333978,107880.0,107870.0,0.01287]
[1762177392100,0.62333978,107880.0,107870.0,0.02474]
[1762177393202,0.62333978,107880.0,107870.0,0.01287]
[1762177393402,0.62333978,107880.0,107870.0,0.1055892]
[1762177393708,0.26253978,107880.0,107870.0,0.1174592]
[1762177394105,0.26253978,107880.0,107870.0,0.001]
[1762177394504,0.26253978,107880.0,107870.0,0.01287]
[1762177394709,0.26253978,107880.0,107870.0,0.02474]
[1762177396602,0.26253978,107880.0,107870.0,0.01287]
[1762177397400,0.26253978,107880.0,107870.0,0.1174592]
[1762177397808,0.26253978,107880.0,107870.0,0.02474]
[1762177398107,0.26253978,107880.0,107870.0,0.1174592]
[1762177400215,0.16163989,107880.0,107870.0,0.1174592]
[1762177401110,0.26253978,107880.0,107870.0,0.4782592]
[1762177402712,0.26253978,107880.0,107870.0,0.38554]
[1762177403006,0.26253978,107880.0,107870.0,0.478259]
[1762177404302,0.26253978,107880.0,107870.0,0.38554]
[1762177404506,0.26253978,107880.0,107870.0,0.478259]
[1762177405609,0.26253978,107880.0,107870.0,0.117459]
[1762177406108,0.26253978,107880.0,107870.0,0.001]
[1762177406307,0.28786182,107880.0,107870.0,0.001]
[1762177406504,0.28786182,107880.0,107870.0,0.01287]
[1762177406708,0.28786182,107880.0,107870.0,0.478259]
[1762177409814,0.06074,107880.0,107870.0,0.478259]
[1762177410116,0.28786182,107880.0,107870.0,0.478259]
[1762177412107,0.004,107880.0,107870.0,0.59487991]
[1762177412307,0.11756091,107880.0,107870.0,0.481319]
[1762177412909,0.004,107880.0,107870.0,0.66146846]
[1762177413108,0.004,107880.0,107870.0,0.59487991]
[1762177413305,0.11756091,107880.0,107870.0,0.59487991]
[1762177415219,0.11756091,107880.0,107870.0,0.481319]
[1762177415812,0.16363091,107880.0,107870.0,0.481319]
[1762177416218,0.17692091,107880.0,107870.0,0.478259]
[1762177417422,0.29048182,107880.0,107870.0,0.478259]
[1762177417722,0.29048182,107880.0,107870.0,0.54485957]
[1762177422029,0.0598,107900.0,107890.0,0.1164419]
[1762177422319,0.17336091,107900.0,107890.0,1.22525549]
[1762177423118,0.17336091,107900.0,107890.0,1.22625549]
[1762177423316,0.18736091,107900.0,107890.0,1.22625549]
[1762177424222,0.18736091,107900.0,107890.0,1.1596819]
[1762177424621,0.18736091,107900.0,107890.0,1.22625549]
[1762177426615,0.12756091,107900.0,107890.0,1.23025549]
[1762177426925,0.12756091,107900.0,107890.0,1.3438164]
[1762177427925,0.12756091,107900.0,107890.0,1.23025549]
[1762177428326,0.18692091,107900.0,107890.0,1.1596818]
[1762177428517,0.18692091,107900.0,107890.0,0.8390418]
[1762177428824,0.18692091,107900.0,107890.0,1.1596418]
[1762177433423,0.18692091,107900.0,107890.0,0.7988418]
[1762177438534,0.18192091,107900.0,107890.0,0.7988418]
[1762177438730,0.18192091,107900.0,107890.0,0.4380418]
[1762177439031,0.17992091,107900.0,107890.0,0.4380418]
[1762177439427,0.17792091,107900.0,107890.0,0.4370418]
[1762177439629,0.18592091,107900.0,107890.0,0.4380418]
[1762177443430,0.14969091,107900.0,107890.0,0.7988418]
[1762177443725,0.17180091,107900.0,107890.0,0.7988418]
[1762177443925,0.12656091,107900.0,107890.0,0.9789763]
[1762177444132,0.12656091,107900.0,107890.0,0.86541539]
[1762177445824,0.013,107900.0,107890.0,1.2106963]
[1762177446022,0.05826,107930.0,107920.0,0.1164166]
[1762177446232,0.17182091,107930.0,107920.0,0.7977366]
[1762177447136,0.18313173,107930.0,107920.0,0.70506]
[1762177447635,0.19713173,107930.0,107920.0,0.70606]
[1762177448130,0.19713173,107930.0,107920.0,0.7987367]
[1762177448335,0.20413173,107930.0,107920.0,0.7987367]
[1762177448527,0.19013173,107930.0,107920.0,0.7977367]
[1762177448727,0.19713173,107930.0,107920.0,0.7987367]
[1762177449735,0.19313173,107930.0,107920.0,0.7987367]
[1762177450224,0.19313173,107930.0,107920.0,0.70606]
[1762177450430,0.55393173,107930.0,107920.0,0.34526]
[1762177450630,0.19313173,107930.0,107920.0,0.4379367]
[1762177450831,0.19313173,107930.0,107920.0,0.34526]
[1762177451032,0.30669264,107930.0,107920.0,0.34526]
[1762177451433,0.30669264,107930.0,107920.0,0.34522]
[1762177451938,0.30669264,107930.0,107920.0,0.4378968]
[1762177453239,0.30669264,107930.0,107920.0,0.34522]
[1762177455041,0.32962626,107930.0,107920.0,0.34522]
[1762177456641,0.69042626,107930.0,107920.0,0.34522]
[1762177456834,0.32962626,107930.0,107920.0,0.34522]
[1762177457036,0.21606535,107930.0,107920.0,0.4378966]
[1762177457234,0.21606535,107930.0,107920.0,0.7986966]
[1762177457541,0.19313173,107930.0,107920.0,0.7986966]
[1762177465348,0.17984173,107930.0,107920.0,0.8026966]
[1762177466341,0.19361173,107930.0,107920.0,0.7986966]
[1762177468347,0.18086535,107930.0,107920.0,0.7986966]
[1762177473055,0.18086535,107930.0,107920.0,0.86520594]
[1762177479759,0.18086535,107930.0,107920.0,0.7986966]
[1762177484766,0.18086535,107930.0,107920.0,0.86520594]
[1762177485267,0.18086535,107930.0,107920.0,0.7986966]
[1762177485458,0.18086535,107930.0,107920.0,0.86520594]
[1762177491964,0.18086535,107930.0,107920.0,0.45204934]
[1762177492280,0.18086535,107930.0,107920.0,0.7984966]
[1762177493059,0.17786535,107930.0,107920.0,0.7974966]
[1762177493671,0.17686535,107930.0,107920.0,0.7974966]
[1762177494166,0.17686535,107930.0,107920.0,0.86400594]
[1762177495069,0.17686535,107930.0,107920.0,0.09024934]
[1762177495269,0.17686535,107930.0,107920.0,0.86400554]
[1762177496270,0.17486535,107930.0,107920.0,0.86400554]
[1762177496468,0.17386535,107930.0,107920.0,0.86400554]
[1762177501670,0.12667453,107930.0,107920.0,0.86400554]
[1762177501870,0.003,107930.0,107920.0,1.03339287]
[1762177502074,0.15875453,107950.0,107940.0,0.1163992]
[1762177502282,1.69273301,107950.0,107940.0,0.7974392]
[1762177502480,1.59191848,107950.0,107940.0,0.7974392]
[1762177502661,0.16979842,107950.0,107940.0,0.7974392]
[1762177502865,0.05564389,107950.0,107940.0,0.7974392]
[1762177503171,0.05564389,107950.0,107940.0,0.86401974]
[1762177503375,0.06364389,107950.0,107940.0,0.86501974]
[1762177503762,0.18007842,107950.0,107940.0,0.86501974]
[1762177504271,0.18007842,107950.0,107940.0,0.86501954]
[1762177504471,0.18007842,107950.0,107940.0,0.70578]
[1762177504666,0.18007842,107950.0,107940.0,0.38554]
[1762177505072,0.56361167,107950.0,107940.0,0.34494]
[1762177506078,0.56361167,107950.0,107940.0,0.33307]
[1762177506271,0.56361167,107950.0,107940.0,0.3212]
[1762177506471,0.56361167,107950.0,107940.0,0.34494]
[1762177507073,0.56361167,107950.0,107940.0,0.4375992]
[1762177507574,0.18007842,107950.0,107940.0,0.7983992]
[1762177508682,0.18007842,107950.0,107940.0,0.70574]
[1762177508683,0.20280564,107950.0,107940.0,0.70574]
[1762177509381,0.56360564,107950.0,107940.0,0.34494]
[1762177509976,0.56360564,107950.0,107940.0,0.437599]
[1762177510880,0.54087842,107950.0,107940.0,0.437599]
[1762177512480,0.54087842,107950.0,107940.0,0.34494]
[1762177513171,0.54087842,107950.0,107940.0,0.001]
[1762177513172,0.56360446,107950.0,107940.0,0.001]
[1762177515071,0.88376446,107950.0,107940.0,0.001]
[1762177516585,1.11536446,107950.0,107940.0,0.001]
[1762177518383,0.79520446,107950.0,107940.0,0.001]
[1762177518578,1.11536446,107950.0,107940.0,0.001]
[1762177519186,0.05722,107930.0,107920.0,0.33203]
[1762177519382,0.15803453,107930.0,107920.0,0.3439]
[1762177519575,0.05722,107910.0,107900.0,0.45112054]
[1762177519782,0.15803453,107910.0,107900.0,0.50317414]
[1762177520187,0.15803453,107910.0,107900.0,0.4365936]
[1762177520790,0.15803453,107910.0,107900.0,0.3439]
[1762177521288,0.15803453,107910.0,107900.0,0.33403]
[1762177521593,0.83899453,107910.0,107900.0,0.002]
[1762177522296,0.83899453,107910.0,107900.0,0.03174]
[1762177522477,0.41802,107910.0,107900.0,0.1244338]
[1762177522685,0.15803453,107910.0,107900.0,0.4852338]
[1762177523790,0.15803453,107910.0,107900.0,0.1244338]
[1762177523985,0.05722,107910.0,107900.0,0.1244338]
[1762177524188,0.15803453,107910.0,107900.0,0.4852338]
[1762177524587,0.15803453,107910.0,107900.0,0.1244338]
[1762177524889,0.15803453,107910.0,107900.0,0.1184338]
[1762177525091,0.16203453,107910.0,107900.0,0.1184338]
[1762177525290,0.16203453,107910.0,107900.0,0.4792338]
[1762177525991,0.16203453,107910.0,107900.0,0.1184338]
[1762177526392,0.16403453,107910.0,107900.0,0.1164338]
[1762177527594,0.006,107910.0,107900.0,0.8004938]
[1762177527995,0.006,107910.0,107900.0,0.86707434]
[1762177528393,0.05593,107930.0,107920.0,0.1164164]
[1762177528582,0.16934649,107930.0,107920.0,0.7974164]
[1762177529797,0.17134649,107930.0,107920.0,0.7974164]
[1762177530685,0.17134649,107930.0,107920.0,1.1582164]
[1762177531195,0.17134649,107930.0,107920.0,1.06554]
[1762177531397,0.17134649,107930.0,107920.0,1.1582164]
[1762177531595,0.17334649,107930.0,107920.0,1.1582164]
[1762177532395,0.17134649,107930.0,107920.0,1.1582164]
[1762177532986,0.17034649,107930.0,107920.0,1.1582164]
[1762177534294,0.17034649,107930.0,107920.0,1.1582165]
[1762177534488,0.17034649,107930.0,107920.0,0.34394]
[1762177534489,0.53114649,107930.0,107920.0,0.34394]
[1762177534993,0.01372,107920.0,107910.0,0.02374]
[1762177535192,0.28386298,107920.0,107910.0,0.4366251]
[1762177535800,0.17044649,107920.0,107910.0,0.4366251]
[1762177536097,0.17044649,107920.0,107910.0,0.4386251]
[1762177536396,0.17044649,107920.0,107910.0,0.4406251]
[1762177537089,0.17044649,107920.0,107910.0,0.4386251]
[1762177537294,0.17444649,107920.0,107910.0,0.4386251]
[1762177538295,0.17444649,107920.0,107910.0,0.4366251]
[1762177538494,0.17544649,107920.0,107910.0,0.4366251]
[1762177539193,0.17544649,107920.0,107910.0,0.7974251]
[1762177541602,0.28886298,107920.0,107910.0,0.7974251]
[1762177542003,0.17544649,107920.0,107910.0,0.7974251]
[1762177544203,0.15349649,107920.0,107910.0,0.7974251]
[1762177544405,0.17544649,107920.0,107910.0,0.7974251]
[1762177544594,0.11841649,107920.0,107910.0,0.8014251]
[1762177544794,0.005,107920.0,107910.0,0.91484159]
[1762177545005,0.005,107920.0,107910.0,0.98142213]
[1762177545995,0.11441649,107920.0,107910.0,0.98142213]
[1762177546196,0.11341649,107920.0,107910.0,0.98542213]
[1762177546398,0.11341649,107920.0,107910.0,0.87200564]
[1762177548411,0.05703,107930.0,107920.0,0.1164164]
[1762177548710,0.05703,107930.0,107920.0,0.4772164]
[1762177548711,0.17044649,107930.0,107920.0,0.4772164]
[1762177549307,0.17044649,107930.0,107920.0,0.1164164]
[1762177549708,0.17044649,107930.0,107920.0,0.4772164]
[1762177550108,0.17144649,107930.0,107920.0,0.4772164]
[1762177552212,0.17544649,107930.0,107920.0,0.4772164]
[1762177556810,0.17544649,107930.0,107920.0,0.54379694]
[1762177557312,0.17444649,107930.0,107920.0,0.54379694]
[1762177557908,0.17144649,107930.0,107920.0,0.54379694]
[1762177559818,0.17144649,107930.0,107920.0,0.4772164]
[1762177561509,0.001,107930.0,107920.0,0.59369289]
[1762177561813,0.001,107930.0,107920.0,0.66027343]
[1762177564714,0.11441649,107930.0,107920.0,0.66027343]
[1762177564909,0.15731649,107930.0,107920.0,0.54685694]
[1762177565099,0.13618649,107930.0,107920.0,0.66027343]
[1762177565704,0.13618649,107930.0,107920.0,0.54685694]
[1762177566310,0.17086649,107930.0,107920.0,0.54379694]
[1762177566507,0.17086649,107930.0,107920.0,0.86387694]
[1762177568614,0.17086649,107930.0,107920.0,0.7972964]
[1762177569418,0.17086649,107930.0,107920.0,0.86387694]
[1762177574317,0.17086649,107930.0,107920.0,0.97729343]